Cogmind - Beta 10.2 @@@ ROGUE MODE // 2020.11.17 @ 17:00:01 // Halloween2020/ForbiddenLore Player: Coronach Result: Self-destructed Performance ------------- Evolutions (2) 1000 Regions Visited (8) 1600 Robots Destroyed (45) 225 Value Destroyed (757) 757 Prototype IDs (2) 40 Alien Tech Used (0) 0 Bonus (21) 21 TOTAL SCORE: 3643 Bonus ------- Follower Combat Kills 21 Cogmind --------- Core Integrity 500/550 Matter 206/300 Energy 100/100 System Corruption 2% Temperature Cool (0) Movement Flying (120) Ox1 Location -8/Storage Parts ------- > --- POWER (1) -------- (None) > --- PROPULSION (2) --- Flight Unit > --- UTILITY (6) ------ Sensor Array Signal Interpreter Advanced Targeting Computer Improved ECM Suite > --- WEAPON (2) ------- Mining Claw > --- INVENTORY (4) ---- Large Storage Unit Large Storage Unit Medium Battery (66) High-capacity Matter Pod (200) Peak State ------------ > --- POWER ------------ Light Angular Momentum Engine > --- PROPULSION ------- Light Treads Compact Wheel > --- UTILITY ---------- Small Storage Unit Medium Storage Unit Signal Interpreter Improved Light Armor Plating > --- WEAPON ----------- Autogun Autogun > --- INVENTORY -------- Light Nuclear Core Compact Wheel Improved Heat Sink Large Matter Pod Sensor Array Improved ECM Suite Missile Launcher Mining Claw Mining Claw Mining Claw [Rating: 18] Favorites ----------- Power Light Angular Momentum Engine Engine Light Angular Momentum Engine Power Core Light Nuclear Core Propulsion Light Treads Treads Light Treads Leg Aluminum Leg Wheel Compact Wheel Flight Unit Flight Unit Utility Small Storage Unit Device Sensor Array Storage Small Storage Unit Processor Signal Interpreter Protection Improved Light Armor Plating Weapon Autogun Energy Gun EM Pulse Gun Ballistic Gun Autogun Launcher EMP Blaster Slashing Weapon Mining Claw Build | -11 -10 -10 -9 -9 -9 -8 -8 -8 ------- Run | Scr Mat Min Mat Min Exi Min Mat Sto Slots Evolved 4 | . . . 2 . . . 2 . Power . | . . . . . . . . . Propulsion . | . . . . . . . . . Utility 4 | . . . 2 . . . 2 . Weapon . | . . . . . . . . . Parts Attached 40 | 3 12 7 6 1 2 7 . 2 Power 4 | . 1 2 . . . 1 . . Engine 2 | . . 1 . . . 1 . . Core 2 | . 1 1 . . . . . . Reactor . | . . . . . . . . . Propulsion 8 | 3 1 1 . 1 . 2 . . Treads 2 | 1 1 . . . . . . . Leg . | . . . . . . . . . Wheel 4 | 2 . 1 . 1 . . . . Hover . | . . . . . . . . . Flight 2 | . . . . . . 2 . . Utility 15 | . 4 . 6 . 2 2 . 1 Device 4 | . . . 3 . . 1 . . Storage 5 | . 2 . . . 2 1 . . Processor 3 | . 1 . 1 . . . . 1 Hackware . | . . . . . . . . . Protection 3 | . 1 . 2 . . . . . Artifact . | . . . . . . . . . Weapon 13 | . 6 4 . . . 2 . 1 Energy Gun 2 | . 2 . . . . . . . Energy Cannon . | . . . . . . . . . Ballistic Gun 7 | . 4 3 . . . . . . Ballistic Cannon . | . . . . . . . . . Launcher 3 | . . 1 . . . 2 . . Special Weapon . | . . . . . . . . . Impact Weapon . | . . . . . . . . . Slashing Weapon 1 | . . . . . . . . 1 Piercing Weapon . | . . . . . . . . . Special Melee Weapon . | . . . . . . . . . Unidentified Prototypes . | . . . . . . . . . Parts Lost 8 | . . 2 . . . 4 . 2 Power 1 | . . . . . . . . 1 Propulsion 4 | . . 1 . . . 2 . 1 Utility . | . . . . . . . . . Weapon 3 | . . 1 . . . 2 . . Highest Loss Streak 3 | . . 1 . . . 3 . 2 Average Slot Usage (%) 98 | . 99 99 99 100 100 94 63 71 Engine 8 | . 9 4 11 11 11 10 9 9 Core 3 | . 4 9 . . . . . . Treads 12 | . 14 14 11 11 11 9 . . Wheel 12 | . 14 14 11 11 11 9 . . Device 5 | . . . 7 11 11 12 18 18 Storage 23 | . 25 28 22 22 22 20 9 8 Processor 5 | . 2 . 11 11 11 11 9 17 Energy Gun 2 | . 8 1 . . . . . . Ballistic Gun 20 | . 19 26 22 22 22 10 . . Naked Turns . | . . . . . . . . . Heaviest Build 49 | 11 23 27 30 28 48 49 8 8 Greatest Support 20 | 20 20 20 20 16 16 20 8 8 Greatest Overweight (x) 3 | . 1 1 1 1 2 3 . 1 Average Overweight (x) . | . . 1 1 1 1 2 . . Largest Inventory Capacity 16 | 6 10 10 10 10 16 16 4 4 Average Capacity 10 | 6 9 10 10 10 10 14 4 4 Most Carried 11 | 6 10 10 10 10 11 11 4 4 Average Carried 9 | 4 7 9 9 9 10 9 4 3 Final Capacity 16 | 6 10 10 10 10 16 4 4 4 Final Carried 11 | 4 10 10 10 10 11 4 4 4 Class Distribution -------------------- 61% | Mutant 38% | Scavenger-Mutant Dominant Class ---------------- Mutant | -10/Materials Mutant | -10/Mines Mutant | -9/Materials Scavenger-Mutant | -9/Mines Scavenger-Mutant | -9/Exiles Scavenger-Mutant | -8/Mines Scavenger-Mutant | -8/Materials Scavenger-Mutant | -8/Storage Resources | -11 -10 -10 -9 -9 -9 -8 -8 -8 ----------- Run | Scr Mat Min Mat Min Exi Min Mat Sto Matter Collected 1200 | 234 442 383 80 20 10 31 . . Remotely . | . . . . . . . . . Salvage Created 1075 | 62 364 444 80 . . 125 . . Parts 83 | 1 29 25 7 . . 21 . . Haulers Intercepted . | . . . . . . . . . Recyclers Shooed 1 | 1 . . . . . . . . Parts Field Recycled . | . . . . . . . . . Retrieved Matter . | . . . . . . . . . Parts Self-Destructed . | . . . . . . . . . Prevented . | . . . . . . . . . Kills | -11 -10 -10 -9 -9 -9 -8 -8 -8 ------- Run | Scr Mat Min Mat Min Exi Min Mat Sto Combat Hostiles Destroyed 39 | . 9 15 4 . . 11 . . Guns 22 | . 7 11 4 . . . . . AOE 17 | . 2 4 . . . 11 . . Classes Destroyed 5 | 1 4 . . . . . . . Worker 1 | . 1 . . . . . . . Recycler 3 | 1 . 2 . . . . . . Watcher 2 | . 2 . . . . . . . Swarmer 28 | . 3 11 3 . . 11 . . Grunt 11 | . 6 4 1 . . . . . Best Kill Streak 6 | 1 4 5 4 . . 6 . . Combat Bots Only 6 | . 3 4 4 . . 6 . . Max Kills in Single Turn 3 | 1 2 2 2 . . 3 . . Gunslinging 1 | . . . 1 . . . . . Exploded 3 | . 1 1 . . . 3 . . Melee . | . . . . . . . . . Uniques/NPCs Destroyed . | . . . . . . . . . Combat | -11 -10 -10 -9 -9 -9 -8 -8 -8 -------- Run | Scr Mat Min Mat Min Exi Min Mat Sto Damage Taken 1322 | . 272 472 185 . . 240 . 153 Core 241 | . 34 86 33 . . 38 . 50 Absorbed by Shields . | . . . . . . . . . Core Remaining (%) 78 | 100 . 52 . . . 82 . . Volleys Fired 69 | 2 22 31 5 . . 9 . . Largest 2 | 2 2 2 2 . . 1 . . Hottest 63 | 40 63 63 46 . . 36 . . Shots Fired 128 | 4 44 61 10 . . 9 . . Gun 116 | 4 44 58 10 . . . . . Cannon . | . . . . . . . . . Launcher 12 | . . 3 . . . 9 . . Special . | . . . . . . . . . Kinetic 92 | 4 31 47 10 . . . . . Thermal . | . . . . . . . . . Explosive 4 | . . 3 . . . 1 . . Electromagnetic 32 | . 13 11 . . . 8 . . Robot Hit Streak 13 | 3 13 7 7 . . 8 . . Robot Miss Streak 4 | 1 4 3 1 . . 1 . . Penetration Max . | . . . . . . . . . Secondary Targets 2 | . . 1 1 . . . . . Max Gunslinging Chain 1 | . . 1 1 . . . . . Shots Hit Robots 80 | 3 29 34 9 . . 5 . . Core Hits 55 | 2 15 22 4 . . 12 . . Critical Hits . | . . . . . . . . . Critical Kills . | . . . . . . . . . Critical Parts Destroyed . | . . . . . . . . . Melee Attacks 3 | . . . . . . . . 3 Impact . | . . . . . . . . . Slashing 3 | . . . . . . . . 3 Piercing . | . . . . . . . . . Sneak Attacks . | . . . . . . . . . Combat Hostiles . | . . . . . . . . . Follow-up Attacks . | . . . . . . . . . Damage Inflicted 2278 | 15 547 984 133 . . 599 . . Guns 1071 | 15 441 482 133 . . . . . Cannons . | . . . . . . . . . Explosions 1207 | . 106 502 . . . 599 . . Melee . | . . . . . . . . . Ramming . | . . . . . . . . . Kinetic 827 | 15 306 373 133 . . . . . Thermal 348 | . 106 111 . . . 131 . . Explosive 693 | . . 391 . . . 302 . . Electromagnetic 410 | . 135 109 . . . 166 . . Impact . | . . . . . . . . . Slashing . | . . . . . . . . . Piercing . | . . . . . . . . . Highest Corruption 4 | . 4 4 . . . . . 2 Average Corruption 3 | . 1 4 . . . . . 2 Corruption Purged . | . . . . . . . . . Effects 23 | . 4 19 . . . . . . Message Errors 5 | . 2 3 . . . . . . Matter Fused 5 | . 1 4 . . . . . . Energy Discharges 1 | . . 1 . . . . . . Data Loss (minor) 6 | . . 6 . . . . . . Targeting Errors 6 | . 1 5 . . . . . . Overload Shots . | . . . . . . . . . Overflow Damage 82 | . . 3 . . . 79 . . Projectiles . | . . . . . . . . . Explosions 82 | . . 3 . . . 79 . . Melee . | . . . . . . . . . Knockbacks . | . . . . . . . . . Impact . | . . . . . . . . . Kinetic . | . . . . . . . . . Secondary . | . . . . . . . . . Self-Inflicted Damage 168 | . 31 29 . . . 108 . . Shots 8 | . 1 1 . . . 6 . . Rammed . | . . . . . . . . . Targets Rammed . | . . . . . . . . . Kicked . | . . . . . . . . . Crushed . | . . . . . . . . . Highest Temperature 103 | . 102 103 28 . . 7 . . Average Temperature 28 | . 30 28 11 . . 4 . . Received Heat Transfer 201 | . 108 45 30 . . . . 18 Siege Activations . | . . . . . . . . . Robots Corrupted . | . . . . . . . . . Combat Hostiles . | . . . . . . . . . Parts Fried . | . . . . . . . . . Impact Corruptions . | . . . . . . . . . Robots Melted . | . . . . . . . . . Combat Hostiles . | . . . . . . . . . Parts Melted 1 | . . . . . . 1 . . Heat Transferred 400 | . 100 150 . . . 150 . . Parts Sabotaged . | . . . . . . . . . Parts Stolen . | . . . . . . . . . Parts Stripped . | . . . . . . . . . Power Chain Reactions 7 | . 2 1 . . . 4 . . Missiles Intercepted . | . . . . . . . . . Alert | -11 -10 -10 -9 -9 -9 -8 -8 -8 ------- Run | Scr Mat Min Mat Min Exi Min Mat Sto Peak Influence 328 | 5 263 328 185 77 . 265 163 174 Initial 103 | . 3 61 68 72 . . 103 68 Average 130 | 3 108 154 94 72 . 191 127 120 Maximum Alert Level 1 | . 1 1 . . . 1 . . Low Security (%) 76 | 100 88 49 100 100 . 85 100 100 Level 1 23 | . 11 50 . . . 14 . . Level 2 . | . . . . . . . . . Level 3 . | . . . . . . . . . Level 4 . | . . . . . . . . . Level 5 . | . . . . . . . . . High Security . | . . . . . . . . . Max Security . | . . . . . . . . . Squads Dispatched 3 | . 1 . 1 . . . . 1 Investigation 2 | . 1 . 1 . . . . . Extermination . | . . . . . . . . . Reinforcement 1 | . . . . . . . . 1 Assault . | . . . . . . . . . Garrison . | . . . . . . . . . Intercept . | . . . . . . . . . Construction Impeded . | . . . . . . . . . Haulers Reinforced . | . . . . . . . . . Stealth | -11 -10 -10 -9 -9 -9 -8 -8 -8 --------- Run | Scr Mat Min Mat Min Exi Min Mat Sto Distress Signals . | . . . . . . . . . Communications Jammed . | . . . . . . . . . Distress Signals . | . . . . . . . . . Times Spotted 67 | . 18 22 9 . . 12 2 4 Peak Tracking Total 7 | . 5 4 6 . . 7 5 4 Tactical Retreats 8 | . 3 2 . . . 1 . 2 Traps | -11 -10 -10 -9 -9 -9 -8 -8 -8 ------- Run | Scr Mat Min Mat Min Exi Min Mat Sto Traps Triggered 5 | . 3 1 1 . . . . . Indirectly . | . . . . . . . . . Trap Hack Attempts . | . . . . . . . . . Triggered . | . . . . . . . . . Disarmed . | . . . . . . . . . Reprogrammed . | . . . . . . . . . Reused . | . . . . . . . . . Traps Extracted . | . . . . . . . . . Installed . | . . . . . . . . . Triggered 1 | . 1 . . . . . . . Machines | -11 -10 -10 -9 -9 -9 -8 -8 -8 ---------- Run | Scr Mat Min Mat Min Exi Min Mat Sto Machines Disabled . | . . . . . . . . . Max in Single Turn . | . . . . . . . . . Machines Sabotaged . | . . . . . . . . . Garrisons Compromised . | . . . . . . . . . Overloaded Fab Kills . | . . . . . . . . . Fab Network Shutdowns . | . . . . . . . . . Hacking | -11 -10 -10 -9 -9 -9 -8 -8 -8 --------- Run | Scr Mat Min Mat Min Exi Min Mat Sto Machines Accessed 19 | . 9 2 2 1 4 . . 1 Terminals 11 | . 6 1 2 1 . . . 1 Fabricators . | . . . . . . . . . Repair Stations 1 | . 1 . . . . . . . Recycling Units 2 | . 2 . . . . . . . Scanalyzers . | . . . . . . . . . Garrison Access . | . . . . . . . . . Total Hacks 87 | . 34 5 11 2 30 . . 5 Successful 69 | . 24 4 7 2 30 . . 2 Failed 18 | . 10 1 4 . . . . 3 Catastrophic 2 | . 1 . . . . . . 1 Database Lockouts . | . . . . . . . . . Manual 43 | . 24 2 10 2 . . . 5 Terminals 42 | . 20 4 11 2 . . . 5 Fabricators . | . . . . . . . . . Repair Stations 3 | . 3 . . . . . . . Recycling Units 11 | . 11 . . . . . . . Scanalyzers . | . . . . . . . . . Garrison Access . | . . . . . . . . . Terminal Hacks 40 | . 5 2 3 . 30 . . . Record 30 | . . . . . 30 . . . Prototype ID Bank 1 | . 1 . . . . . . . Open Door 1 | . . 1 . . . . . . Branch Access Points 1 | . . . 1 . . . . . Terminal Index 2 | . 1 . 1 . . . . . Alert Level 2 | . 2 . . . . . . . Dispatch Records 1 | . . 1 . . . . . . Registered Prototypes 1 | . 1 . . . . . . . Zone Layout 1 | . . . 1 . . . . . Fabricator Hacks . | . . . . . . . . . Repair Station Hacks 2 | . 2 . . . . . . . Scan Component 1 | . 1 . . . . . . . Repair 1 | . 1 . . . . . . . Recycling Unit Hacks 3 | . 3 . . . . . . . Report Inventory 2 | . 2 . . . . . . . Retrieve Components 1 | . 1 . . . . . . . Scanalyzer . | . . . . . . . . . Garrison Access Hacks . | . . . . . . . . . Unauthorized Hacks 24 | . 14 2 4 2 . . . 2 Terminals 17 | . 7 2 4 2 . . . 2 Track 5 | . 1 1 1 1 . . . 1 Botnet 9 | . 4 1 2 1 . . . 1 Disrupt 1 | . 1 . . . . . . . Operators 2 | . 1 . 1 . . . . . Fabricators . | . . . . . . . . . Repair Stations 1 | . 1 . . . . . . . Mechanics 1 | . 1 . . . . . . . Recycling Units 6 | . 6 . . . . . . . Monitor 1 | . 1 . . . . . . . Reject 2 | . 2 . . . . . . . Recyclers 1 | . 1 . . . . . . . Mask 2 | . 2 . . . . . . . Scanalyzers . | . . . . . . . . . Garrison Access . | . . . . . . . . . Data Cores Recovered . | . . . . . . . . . Used . | . . . . . . . . . Hacking Detections 13 | . 8 1 2 1 . . . 1 Full Trace Events 2 | . 1 1 . . . . . . Feedback Events 1 | . 1 . . . . . . . Corruption 1 | . 1 . . . . . . . Feedback Blocked . | . . . . . . . . . Robot Schematics Acquired . | . . . . . . . . . Robots Built . | . . . . . . . . . Matter . | . . . . . . . . . Time . | . . . . . . . . . Total Robot Build Rating . | . . . . . . . . . Part Schematics Acquired . | . . . . . . . . . Parts Built . | . . . . . . . . . Matter . | . . . . . . . . . Time . | . . . . . . . . . Total Part Build Rating . | . . . . . . . . . Parts Repaired 1 | . 1 . . . . . . . Time 32 | . 32 . . . . . . . Parts Recycled . | . . . . . . . . . Recycled Matter . | . . . . . . . . . Retrieved Matter . | . . . . . . . . . Retrieved Components 9 | . 9 . . . . . . . Parts Scanalyzed . | . . . . . . . . . Part Schematics Acquired . | . . . . . . . . . Parts Damaged . | . . . . . . . . . Bothacking | -11 -10 -10 -9 -9 -9 -8 -8 -8 ------------ Run | Scr Mat Min Mat Min Exi Min Mat Sto Used RIF Installer . | . . . . . . . . . Robots Hacked . | . . . . . . . . . Non-combat . | . . . . . . . . . Combat . | . . . . . . . . . Robot Hacks Applied . | . . . . . . . . . Relay Couplers Released . | . . . . . . . . . Robots Rewired . | . . . . . . . . . Allies Hacked . | . . . . . . . . . Hacks Repelled . | . . . . . . . . . Allies | -11 -10 -10 -9 -9 -9 -8 -8 -8 -------- Run | Scr Mat Min Mat Min Exi Min Mat Sto Total Allies 1 | . . 1 . . . . . . Largest Group 1 | . . 1 . . . . . . Highest-Rated Group 31 | . . 31 . . . . . . Highest-Rated Ally 31 | . . 31 . . . . . . Total Orders . | . . . . . . . . . Ally Attacks 6 | . . 6 . . . . . . Total Damage 105 | . . 105 . . . . . . Kills 3 | . . 3 . . . . . . Allies Corrupted . | . . . . . . . . . Allies Melted . | . . . . . . . . . Intel | -11 -10 -10 -9 -9 -9 -8 -8 -8 ------- Run | Scr Mat Min Mat Min Exi Min Mat Sto Robot Analysis Total . | . . . . . . . . . Derelict Logs Recovered 2 | . . 1 . 1 . . . . Drone Launches . | . . . . . . . . . Drone Recoveries . | . . . . . . . . . Exploration | -11 -10 -10 -9 -9 -9 -8 -8 -8 ------------- Run | Scr Mat Min Mat Min Exi Min Mat Sto Turns Passed 2812 | 19 664 835 178 178 598 226 26 88 Spaces Moved 2322 | 5 482 620 120 155 531 159 66 184 Core 3 | . . . . . . 3 . . Treads 61 | 5 15 28 5 . . 8 . . Legs . | . . . . . . . . . Wheels 1984 | . 467 592 115 155 531 124 . . Hover . | . . . . . . . . . Flight 274 | . . . . . . 24 66 184 Fastest Speed 37 | 160 100 110 110 110 110 37 37 37 Average Speed 104 | 160 110 113 112 110 111 118 37 37 Slowest Speed 200 | 160 180 180 180 110 120 200 37 120 Overloaded Moves . | . . . . . . . . . Propulsion Burnouts . | . . . . . . . . . Robots Hopped 1 | . . . . . . . . 1 Cave-ins Triggered 1 | . . . . . . . . 1 Exploration Rate (%) 40 | 2 57 96 16 39 91 34 10 21 Regions Visited 8 Branch Regions 5 Pre-discovered Areas 2 | . . . . 1 1 . . . Known Exits Taken 5 | . . . 1 1 1 1 1 . Unknown Exits Taken 3 | 1 1 1 . . . . . . Scrap Searched 5 | . . 3 . 1 . 1 . . Spaces Dug 3 | . . . . . . . . 3 Terrain Destroyed 75 | . 7 39 . . . 26 . 3 Melee 3 | . . . . . . . . 3 Projectile . | . . . . . . . . . AOE 72 | . 7 39 . . . 26 . . Terrain Rammed . | . . . . . . . . . Walls Destroyed . | . . . . . . . . . Machines Disabled . | . . . . . . . . . Actions | -11 -10 -10 -9 -9 -9 -8 -8 -8 --------- Run | Scr Mat Min Mat Min Exi Min Mat Sto Total 2599 | 13 578 702 152 162 539 191 66 196 Wait 103 | . 35 32 20 5 . 3 1 7 Move 2312 | 4 481 619 119 154 530 158 65 182 Hop 1 | . . . . . . . . 1 Pick Up 32 | 1 16 7 2 1 3 2 . . Fast Attach 8 | . 4 . . . . 3 . 1 Attach 10 | . 1 3 2 . . 3 . 1 Detach 3 | . . . . . . 2 . 1 Swap 22 | 3 7 4 4 1 2 1 . . Drop 36 | 3 12 6 . 1 4 10 . . Fire 69 | 2 22 31 5 . . 9 . . Melee 3 | . . . . . . . . 3 Ram . | . . . . . . . . . Kick . | . . . . . . . . . Crush . | . . . . . . . . . Escape Stasis . | . . . . . . . . . Rewire . | . . . . . . . . . Trap . | . . . . . . . . . Miscellaneous . | . . . . . . . . . Route ------- -11/Scrapyard -10/Materials (discovered 2 exits: *Mat / *Min) -10/Mines (discovered 2 exits: *Mat x2) -9/Materials -9/Mines -9/Exiles (discovered 2 exits: *Min x2) -8/Mines -8/Materials -8/Storage (discovered 1 exit: Rec) History --------- Turn | Location | Event 11 | -11/Scrapyard | Discovered new exit (range 3) 20 | -11/Scrapyard | Entered Materials 318 | -10/Materials | Discovered new exit (range 16) 324 | -10/Materials | Build established: Mutant 366 | -10/Materials | Repaired Autogun 666 | -10/Materials | Discovered new exit (range 9) 684 | -10/Materials | Entered Mines 689 | -10/Mines | Met a Derelict bent on vengeance 769 | -10/Mines | Discovered new exit (range 10) 825 | -10/Mines | Met a Derelict who couldn't figure out how to use a Trap Extractor 1102 | -10/Mines | Received a Mining Laser from a helpful Derelict 1111 | -10/Mines | Discovered new exit (range 9) 1519 | -10/Mines | Entered Materials 1519 | -9/Materials | Evolved 2 slots: Utility x2 1646 | -9/Materials | Discovered new exit (range 10) 1646 | -9/Materials | Identified exit to Mines 1697 | -9/Materials | Entered Mines 1822 | -9/Mines | Discovered new exit (range 13) 1872 | -9/Mines | Identified exit to Exiles 1875 | -9/Mines | Entered Exiles 1892 | -9/Exiles | Discovered new exit (range 14) 1905 | -9/Exiles | Identified exit to Mines 1926 | -9/Exiles | Met 8R-AWN 1945 | -9/Exiles | Met EX-HEX 1976 | -9/Exiles | Met EX-BIN 2005 | -9/Exiles | Build established: Scavenger-Mutant 2083 | -9/Exiles | Met EX-DEC 2089 | -9/Exiles | Learned location of Zion (-6) 2167 | -9/Exiles | Discovered exit to Mines (range 14) 2247 | -9/Exiles | Visited The Gauntlet 2473 | -9/Exiles | Entered Mines 2642 | -8/Mines | Discovered new exit (range 3) 2645 | -8/Mines | Identified exit to Materials 2699 | -8/Mines | Entered Materials 2699 | -8/Materials | Evolved 2 slots: Utility x2 2701 | -8/Materials | Lost 3 parts (2n1w) 2708 | -8/Materials | Discovered new exit (range 15) 2719 | -8/Materials | Identified exit to Storage 2725 | -8/Materials | Entered Storage 2726 | -8/Storage | Identified exit to Recycling 2810 | -8/Storage | Crushed by falling debris 2813 | -8/Storage | Self-destructed Last Messages --------------- 02763_ K-01 Serf collects debris. 02772_ Connecting with Terminal... >>Trojan(Botnet) Trojan loaded successfully. Testing... Terminal linked with 0 systems. Awaiting botnet instructions. >>Trojan(Track) Trojan loaded successfully. Testing... Tracking enabled and active. 02789_ Drone sends a signal. 02796_ ALERT: Hostiles spotted, dispatching reinforcements to Terminal S011. 02810_ The unstable cave ceiling collapses. 02810_ Crushed by falling debris. 02810_ Lgt. Ion Engine destroyed. 02810_ System corrupted by crushing effect (+1). 02810_ Flight Unit destroyed. 02810_ System corrupted by crushing effect (+1). Map ----- +----------------------------------------------------+ | ??# #???????????????????????? | | ??# #???????????????????????? | | ??## ##???????????????????????? | | ???# #????????????????????????? | | ???# #??????o?????????????????? | | ???# #????????????????????????? | | ???# #????????????????????????? | | ???# #????????????????????????? | | ???# #????????????????????????? | | ??## ##???????????????????????? | | ??# #???????????????????????? | | ??# T #???????????????????????? | | ??# #?????k?????????????????? | | ??## ##???????????????????????? | | ???# #????????????????????????? | | ???# #?????k??????????????????? | | ???# #????????????????????????? | | ???# #????????????????????????? | | ???# #????????????????????????? | | ???# #????????????????????????? | | ??##Y##???????????????????????? | | ??# #??##???????????????????? | | ??# ### #???????????????????? | | ??# ####????????????????????? | | ?###+##;##????????????????????? | | # @##?????????????????????? | | # #??????????????????????? | | # #??????????????????????? | | # #??????????????????????? | | # #??????????????????????? | | # #??????????????????????? | | ########??????????????????????? | | ??????????????????????????????? | | ??????????????????????????????? | | ??????????????????????????????? | | | | | | | | | | | | | | | | | | | | | | | | | | | | | | | +----------------------------------------------------+ Best States ------------- Heat Dissipation 31 Energy Generation 18 Energy Capacity 325 Matter Stores 300 Matter Capacity 300 Sight Range 18 Robot Scan Range 10 Terrain Scan Density 10 ECM Strength 2 Armor Coverage 150 Evasion (%) 62 Targeting Accuracy 8 Recoil Reduction 1 Item Schematics ----------------- None Robot Schematics ------------------ None Fabricated ------------ Nothing Alien Tech Used ----------------- None Achievements -------------- None Challenges ------------ None Game ------ Seed CoordinationFortressMapper Manual? 0 Play Time 01:01:48 Cumulative 86.0 hours Start 2020.11.17 @ 06:55:33 End 2020.11.17 @ 17:00:01 Sessions 3 Manual Loads 0 Difficulty Rogue Special Mode Halloween2020/ForbiddenLore Game No. 37 Rogue 34 Adventurer 0 Explorer 3 Win Type - Total 1 Types 1/0/0/0/0/0/0/0/0 Lore% 39 Gallery% 53 Achievement% 37 Wizard Run 0 Options --------- ASCII 0 Keyboard 0 Movement Numpad Keybinds 0 Fullscreen 2 Font 16/Dina Map View 76x50 Tactical HUD 1 Map Filters NONE Filters NONE Steam 1 RUN: 596b76ca-38c7-4e27-b8e0-d9dbd4ca6ba0